Cogmind - Beta 17 @@@ ROGUE MODE // 2026.07.27 @ 21:44:49 Player: TheSkyeDoctor Result: Destroyed by G-34 Mercenary with Small Laser Performance ------------- Evolutions (1) 500 Regions Visited (4) 800 Robots Destroyed (30) 150 Value Destroyed (651) 651 Prototype IDs (4) 80 Alien Tech Used (0) 0 Bonus (7621) 7621 TOTAL SCORE: 9802 Bonus ------- Follower Combat Kills 221 Prayed to X0-1V1 5000 Major X0-1V1 Interference 2400 Cogmind --------- Core Integrity 0/300 Matter 624/700 Energy 100/100 System Corruption 0% Temperature Cool (6) Movement Treading (160) Location -9/Mines Parts ------- > --- POWER (1) -------- (None) > --- PROPULSION (3) --- Light Treads Improved Treads (fused) > --- UTILITY (3) ------ Large Storage Unit Self-contained Transmogrifier X0-1V1's Piety Tracker > --- WEAPON (5) ------- Axe > --- INVENTORY (15) --- Improved Hover Unit Improved Terrain Scanner Terrain Scan Processor Seismic Detector Peak State ------------ > --- POWER ------------ (None) > --- PROPULSION ------- Light Treads Light Treads Improved Treads > --- UTILITY ---------- Large Storage Unit Self-contained Transmogrifier X0-1V1's Piety Tracker > --- WEAPON ----------- Heavy Assault Rifle Rocket Launcher Missile Launcher Axe > --- INVENTORY -------- Light Treads Improved Hover Unit Improved Terrain Scanner Terrain Scan Processor Seismic Detector [Rating: 37] Favorites ----------- Power Ion Engine Engine Ion Engine Power Core Light Nuclear Core Propulsion Light Treads Treads Light Treads Wheel Wheel Hover Unit Improved Hover Unit Utility Small Storage Unit Device X0-1V1's Piety Tracker Storage Small Storage Unit Processor Visual Processing Unit Protection Light Armor Plating Weapon Light Assault Rifle Energy Gun EM Pulse Gun Ballistic Gun Light Assault Rifle Launcher Rocket Launcher Slashing Weapon Axe Build | -11 -10 -10 -9 -9 ------- Run | Yrd Mat Min Mat Min Slots Evolved 2 | . . . 2 . Power . | . . . . . Propulsion 1 | . . . 1 . Utility 1 | . . . 1 . Weapon . | . . . . . Parts Attached 33 | 8 9 . 15 1 Power 4 | 2 1 . 1 . Engine 3 | 2 . . 1 . Core 1 | . 1 . . . Reactor . | . . . . . Propulsion 12 | 2 2 . 7 1 Treads 6 | 2 . . 3 1 Leg . | . . . . . Wheel 2 | . 2 . . . Hover 4 | . . . 4 . Flight . | . . . . . Utility 9 | 2 4 . 3 . Device 4 | 1 2 . 1 . Storage 2 | 1 . . 1 . Processor . | . . . . . Hackware . | . . . . . Protection 3 | . 2 . 1 . Artifact . | . . . . . Weapon 8 | 2 2 . 4 . Energy Gun 2 | 2 . . . . Energy Cannon . | . . . . . Ballistic Gun 3 | . 2 . 1 . Ballistic Cannon . | . . . . . Launcher 2 | . . . 2 . Special Weapon . | . . . . . Impact Weapon . | . . . . . Slashing Weapon 1 | . . . 1 . Piercing Weapon . | . . . . . Special Melee Weapon . | . . . . . Unidentified Prototypes 1 | . 1 . . . Parts Lost 20 | . 7 1 7 5 Power 3 | . . 1 2 . Propulsion 9 | . 4 . 3 2 Utility 2 | . 1 . 1 . Weapon 6 | . 2 . 1 3 Highest Loss Streak 5 | . 3 1 3 5 To Critical Strikes . | . . . . . Average Backups 5 | 1 5 5 6 4 Power 1 | . 1 1 . . Propulsion 1 | . 1 . 1 1 Utility 2 | . 2 4 3 3 Weapon . | . . . . . Tool/Special . | . . . . . Unused Backups 5 | 1 . . 1 3 Power . | . . . . . Propulsion 3 | 1 . . 1 1 Utility 2 | . . . . 2 Weapon . | . . . . . Tool/Special . | . . . . . Average Slot Usage (%) 78 | . 72 69 87 73 Engine 7 | . 10 . 7 . Core 2 | . 1 12 . . Treads 12 | . 17 . 8 22 Hover 7 | . . . 16 . Device 10 | . 4 14 14 16 Storage 11 | . 12 14 10 8 Protection 3 | . 1 . 6 . Energy Gun 6 | . 15 . . . Ballistic Gun 10 | . 5 28 11 5 Launcher 3 | . . . 6 11 Slashing Weapon 2 | . . . 4 8 Peak Build Rating 37 | 7 19 19 36 37 Average Rating 16 | 5 6 18 27 33 On Entrance 15 | . 7 19 16 36 Avg Prop Armor Cover (%) 19 | . 19 . . . Naked Turns 15 | . 15 . . . Heaviest Build 37 | 15 15 13 37 37 Greatest Support 63 | 40 40 3 63 63 Greatest Overweight (x) 4 | . 4 4 3 . Average Overweight (x) . | . . 3 . . Largest Inventory Capacity 15 | 8 8 8 15 15 Average Capacity 8 | 7 7 8 8 15 Most Carried 8 | 4 7 5 8 5 Average Carried 5 | 1 5 5 6 4 Final Capacity 15 | 8 8 8 15 15 Final Carried 5 | 4 5 5 5 4 Transmogrified Parts 3 | . . . 2 1 Class Distribution -------------------- 89% | Mutant 5% | Gunner 3% | Tank Dominant Class ---------------- Mutant | -10/Materials Mutant | -10/Mines Mutant | -9/Materials Gunner | -9/Mines Resources | -11 -10 -10 -9 -9 ----------- Run | Yrd Mat Min Mat Min Matter Collected 708 | 280 101 10 317 . Remotely . | . . . . . Salvage Created 868 | 155 174 13 452 74 Parts 58 | 10 11 2 32 3 Haulers Intercepted . | . . . . . Recyclers Shooed 1 | 1 . . . . Parts Field Recycled . | . . . . . Retrieved Matter . | . . . . . Parts Self-Destructed . | . . . . . Prevented . | . . . . . Parts Restored . | . . . . . Kills | -11 -10 -10 -9 -9 ------- Run | Yrd Mat Min Mat Min Combat Hostiles Destroyed 19 | . 6 1 9 3 Melee 3 | . . . 1 2 Guns 11 | . 6 1 4 . AOE 5 | . . . 4 1 Classes Destroyed 9 | 2 2 . 3 2 Tunneler 5 | 4 . . 1 . Recycler 3 | 1 . . 2 . Operator 1 | . . . 1 . Watcher 1 | . . . 1 . Swarmer 7 | . 3 1 3 . Grunt 7 | . 3 . 3 1 Duelist 2 | . . . . 2 Sentry 3 | . . . 3 . Demolisher 1 | . . . . 1 Best Kill Streak 4 | 4 3 1 3 3 Combat Bots Only 3 | . 3 1 3 3 Max Kills in Single Turn 3 | 1 1 1 3 1 Gunslinging . | . . . . . Exploded 3 | . . . 3 1 Melee 1 | . . . 1 1 Uniques/NPCs Destroyed . | . . . . . Combat | -11 -10 -10 -9 -9 -------- Run | Yrd Mat Min Mat Min Hostile Shots Fired 289 | . 153 21 93 22 Missed 92 | . 56 6 28 2 Hits 197 | . 97 15 65 20 Projectile 197 | . 97 15 65 20 AOE 14 | . . . . 14 Critical Strikes 1 | . 1 . . . Part Disruptions 1 | . . . 1 . Damage Taken 2646 | . 963 125 794 764 Core 722 | . 318 31 154 219 Absorbed by Shields . | . . . . . Ignored by Resistances 16 | . . . 16 . Core Remaining (%) 53 | 100 . 7 . . Volleys Fired 80 | 13 25 5 34 3 Largest 3 | 2 2 2 3 3 Hottest 92 | 90 90 40 89 92 Shots Fired 126 | 26 37 10 44 9 Gun 114 | 26 37 10 38 3 Cannon . | . . . . . Launcher 12 | . . . 6 6 Special . | . . . . . Kinetic 57 | . 6 10 38 3 Thermal 32 | 13 19 . . . Explosive 12 | . . . 6 6 Electromagnetic 25 | 13 12 . . . Robot Hit Streak 10 | 10 6 2 6 2 Robot Miss Streak 5 | 1 2 2 3 5 Penetration Max . | . . . . . Secondary Targets 2 | . 1 1 . . Max Gunslinging Chain 1 | . 1 1 . . Shots Hit Robots 91 | 19 23 4 39 6 Core Hits 45 | 5 11 2 18 9 Critical Kills . | . . . . . Critical Parts Destroyed 1 | . . . 1 . Critical Strikes 4 | 1 . . 3 . Burn 1 | 1 . . . . Destroy 1 | . . . 1 . Sever 2 | . . . 2 . Melee Attacks 19 | . . . 16 3 Impact . | . . . . . Slashing 19 | . . . 16 3 Piercing . | . . . . . Sneak Attacks 1 | . . . 1 . Combat Hostiles . | . . . . . Follow-up Attacks . | . . . . . Damage Inflicted 1903 | 254 309 31 1001 308 Guns 902 | 254 290 31 327 . Cannons . | . . . . . Explosions 523 | . . . 311 212 Melee 459 | . . . 363 96 Ramming 19 | . 19 . . . Kinetic 391 | . 33 31 327 . Thermal 246 | 98 148 . . . Explosive 523 | . . . 311 212 Electromagnetic 265 | 156 109 . . . Impact . | . . . . . Slashing 459 | . . . 363 96 Piercing . | . . . . . Highest Corruption 19 | . 4 4 19 . Average Corruption 3 | . 2 4 19 . Corruption Purged . | . . . . . Corruption Blocked . | . . . . . Effects 9 | . 6 2 1 . Message Errors 3 | . 1 1 1 . Heat Flow Errors 2 | . 1 1 . . Parts Rejected 1 | . 1 . . . Data Loss (minor) 2 | . 2 . . . Data Loss (major) 1 | . 1 . . . Overload Shots . | . . . . . Overflow Damage 32 | . . . 32 . Projectiles . | . . . . . Explosions 23 | . . . 23 . Melee 9 | . . . 9 . Knockbacks . | . . . . . Impact . | . . . . . Kinetic . | . . . . . Secondary . | . . . . . Self-Inflicted Damage 9 | . 9 . . . Shots . | . . . . . Rammed 4 | . 4 . . . Targets Rammed 4 | . 4 . . . Kicked . | . . . . . Crushed . | . . . . . Highest Temperature 317 | 300 317 269 305 18 Average Temperature 110 | 124 154 87 65 8 Received Heat Transfer 681 | . 234 . 405 42 Effects 2 | . 2 . . . Interference 2 | . 2 . . . Siege Activations . | . . . . . Martial Activations . | . . . . . Shielding Activations . | . . . . . Robots Disrupted . | . . . . . Combat Hostiles . | . . . . . Robots Corrupted . | . . . . . Combat Hostiles . | . . . . . Parts Fried 1 | 1 . . . . Impact Corruptions . | . . . . . Robots Melted . | . . . . . Combat Hostiles . | . . . . . Parts Melted 2 | . 2 . . . Heat Transferred 814 | 370 444 . . . Parts Sabotaged . | . . . . . Parts Stolen . | . . . . . Parts Stripped . | . . . . . Power Chain Reactions . | . . . . . Alert | -11 -10 -10 -9 -9 ------- Run | Yrd Mat Min Mat Min Maximum Alert Level 1 | . . . 1 . Low Security (%) 95 | 100 100 100 87 100 Level 1 4 | . . . 12 . Level 2 . | . . . . . Level 3 . | . . . . . Level 4 . | . . . . . Level 5 . | . . . . . High Security . | . . . . . Max Security . | . . . . . Peak Influence 242 | 10 70 20 242 115 Initial 84 | . . 14 . 84 Average 50 | 1 13 4 113 92 Influence Increases 833 | 25 159 20 528 101 Destroy 0b10 Robot/C 520 | . 120 20 320 60 Destroy 0b10 Robot/NC 50 | 25 . . 25 . Destroy Leader 102 | . 30 . 62 10 Allied During Kill 22 | . . . 22 . Successful Hack 14 | . 8 . 6 . Disable Machine 15 | . . . 15 . Destroy Structure 95 | . 1 . 63 31 Lose Combat Pursuer 15 | . . . 15 . Influence Decreases 718 | 25 121 58 310 204 Entered New Map 158 | . . 24 . 134 Time Decay 380 | 25 101 24 210 20 Lost Part 140 | . 20 10 60 50 Lost Ally 40 | . . . 40 . Squads Dispatched 5 | . 1 . 4 . Investigation . | . . . . . Extermination . | . . . . . Reinforcement 5 | . 1 . 4 . Assault . | . . . . . Garrison . | . . . . . Intercept . | . . . . . Searches Triggered . | . . . . . Construction Impeded . | . . . . . Haulers Reinforced . | . . . . . Active Scanning Responses . | . . . . . Cargo Convoy Interrupts . | . . . . . Stealth | -11 -10 -10 -9 -9 --------- Run | Yrd Mat Min Mat Min Distress Signals 3 | . 1 . 2 . Communications Jammed . | . . . . . Distress Signals . | . . . . . Times Spotted 45 | . 14 3 22 6 Peak Tracking Total 6 | . 5 2 6 5 Tactical Retreats 1 | . . . 1 . Traps | -11 -10 -10 -9 -9 ------- Run | Yrd Mat Min Mat Min Traps Triggered 1 | . 1 . . . Indirectly . | . . . . . Trap Hack Attempts . | . . . . . Triggered . | . . . . . Disarmed . | . . . . . Reprogrammed . | . . . . . Reused . | . . . . . Traps Extracted . | . . . . . Installed . | . . . . . Triggered . | . . . . . Machines | -11 -10 -10 -9 -9 ---------- Run | Yrd Mat Min Mat Min Machines Disabled 1 | . . . 1 . Max in Single Turn 1 | . . . 1 . Machines Repaired . | . . . . . Machines Dismantled . | . . . . . Machines Sabotaged . | . . . . . Overloaded Fab Kills . | . . . . . Hacking | -11 -10 -10 -9 -9 --------- Run | Yrd Mat Min Mat Min Machines Accessed 3 | . 1 . 2 . Terminals 2 | . 1 . 1 . Fabricators . | . . . . . Repair Stations . | . . . . . Recycling Units . | . . . . . Scanalyzers 1 | . . . 1 . Garrison Access . | . . . . . Total Hacks 9 | . 3 . 6 . Successful 5 | . 3 . 2 . Failed 3 | . . . 3 . Catastrophic 1 | . . . 1 . Database Lockouts 1 | . . . 1 . Manual 7 | . 3 . 4 . Terminals 7 | . 3 . 4 . Fabricators . | . . . . . Repair Stations . | . . . . . Recycling Units . | . . . . . Scanalyzers 2 | . . . 2 . Garrison Access . | . . . . . Terminal Hacks 2 | . 2 . . . Prototype ID Bank 1 | . 1 . . . Branch Access Points 1 | . 1 . . . Fabricator Hacks . | . . . . . Repair Station Hacks . | . . . . . Recycling Unit Hacks . | . . . . . Scanalyzer 1 | . . . 1 . Retrieve Study 1 | . . . 1 . Garrison Access Hacks . | . . . . . Unauthorized Hacks 2 | . 1 . 1 . Terminals 2 | . 1 . 1 . Botnet 2 | . 1 . 1 . Fabricators . | . . . . . Repair Stations . | . . . . . Recycling Units . | . . . . . Scanalyzers . | . . . . . Garrison Access . | . . . . . Data Cores Recovered 1 | . . . 1 . Used . | . . . . . Hacking Detections 2 | . 1 . 1 . Full Trace Events . | . . . . . Feedback Events . | . . . . . Feedback Blocked . | . . . . . Robot Schematics Acquired . | . . . . . Robots Built . | . . . . . Authchips . | . . . . . Time . | . . . . . Total Robot Build Rating . | . . . . . Part Schematics Acquired . | . . . . . Parts Built . | . . . . . Authchips . | . . . . . Time . | . . . . . Total Part Build Rating . | . . . . . Part Studies Acquired 1 | . . . 1 . Parts Repaired . | . . . . . Time . | . . . . . Parts Recycled . | . . . . . Recycled Matter . | . . . . . Retrieved Matter . | . . . . . Retrieved Components . | . . . . . Parts Scanalyzed . | . . . . . Part Schematics Acquired . | . . . . . Parts Damaged . | . . . . . Bothacking | -11 -10 -10 -9 -9 ------------ Run | Yrd Mat Min Mat Min Used RIF Installer . | . . . . . Robots Hacked . | . . . . . Non-combat . | . . . . . Combat . | . . . . . Robot Hacks Applied . | . . . . . Relay Couplers Released . | . . . . . Fabnet Peak Effective % . | . . . . . Robots Rewired . | . . . . . Allies Hacked . | . . . . . Hacks Repelled . | . . . . . Allies | -11 -10 -10 -9 -9 -------- Run | Yrd Mat Min Mat Min Total Allies 3 | . . . 3 . Largest Group 3 | . . . 3 1 Highest-Rated Group 54 | . . . 54 18 Highest-Rated Ally 18 | . . . 18 18 Total Orders . | . . . . . Ally Attacks 30 | . . . 30 . Total Damage 656 | . . . 656 . Kills 7 | . . . 7 . Allies Corrupted . | . . . . . Allies Melted . | . . . . . X0-1V1 Amusement Gains 50 | . 17 . 12 21 Good Acts 19 | . . 1 15 3 Bad Acts 20 | . . 1 19 . Intel | -11 -10 -10 -9 -9 ------- Run | Yrd Mat Min Mat Min Active Infowar (turns) 207 | 77 105 . 25 . Optics 25 | . . . 25 . Seismic 182 | 77 105 . . . Robot Analysis Total . | . . . . . Derelict Logs Recovered . | . . . . . Drone Launches . | . . . . . Drone Recoveries . | . . . . . Exploration | -11 -10 -10 -9 -9 ------------- Run | Yrd Mat Min Mat Min Turns Passed 1350 | 207 473 121 490 59 Spaces Moved 841 | 98 247 45 426 25 Core 152 | 4 85 45 18 . Treads 304 | 94 115 . 70 25 Legs . | . . . . . Wheels 47 | . 47 . . . Hover 338 | . . . 338 . Flight . | . . . . . Fastest Speed 50 | 50 50 150 52 160 Average Speed 112 | 155 130 243 76 160 Slowest Speed 250 | 160 250 250 200 160 Overloaded Moves . | . . . . . Propulsion Burnouts . | . . . . . Robots Hopped . | . . . . . Potential Cave-ins . | . . . . . Cave-ins Triggered . | . . . . . Exploration Rate (%) 24 | 4 43 14 43 17 Regions Visited 4 Branch Regions 2 Pre-discovered Areas 1 | . . 1 . . Known Exits Taken 1 | . 1 . . . Unknown Exits Taken 3 | 1 . 1 1 . Scrap Searched . | . . . . . Spaces Dug . | . . . . . Terrain Destroyed 106 | . . . 56 50 Melee . | . . . . . Projectile . | . . . . . AOE 106 | . . . 56 50 Terrain Rammed . | . . . . . Walls Destroyed . | . . . . . Machines Disabled . | . . . . . Actions | -11 -10 -10 -9 -9 --------- Run | Yrd Mat Min Mat Min Total 1083 | 123 358 49 521 32 Wait 79 | . 65 . 14 . Move 837 | 97 246 44 425 25 Hop . | . . . . . Pick Up 14 | 4 1 . 9 . Fast Attach 21 | 7 7 . 7 . Attach 12 | . 4 . 7 1 Detach 4 | . 4 . . . Swap 7 | 1 1 . 5 . Drop 6 | 1 1 . 4 . Fire 80 | 13 25 5 34 3 Melee 19 | . . . 16 3 Ram 3 | . 3 . . . Kick . | . . . . . Crush 1 | . 1 . . . Escape Stasis . | . . . . . Rewire . | . . . . . Trap . | . . . . . Miscellaneous . | . . . . . Route ------- -11/Scrapyard -10/Materials (discovered 3 exits: *Min x2 / [*Sub]) -10/Mines -9/Materials -9/Mines History --------- Turn | Location | Event 8 | -11/Scrapyard | Discovered new exit (range 16) 208 | -11/Scrapyard | Entered Materials 247 | -10/Materials | Identified exit to Mines 304 | -10/Materials | Build established: Mutant 384 | -10/Materials | Discovered new exit (range 9) 506 | -10/Materials | Lost 3 parts (1n2w) 539 | -10/Materials | Core integrity fell below 50% 560 | -10/Materials | Core integrity fell below 20% 571 | -10/Materials | Prayed at D.C.S.S. Altar Unit 578 | -10/Materials | X0-1V1 rescued you from certain death 584 | -10/Materials | Lost 3 parts (3n) 681 | -10/Materials | Entered Mines 682 | -10/Mines | Learned location of Storage (-7) 766 | -10/Mines | Discovered new exit (range 3) 766 | -10/Mines | X0-1V1 sent someone to keep an eye on you 802 | -10/Mines | Entered Materials 802 | -9/Materials | Evolved 2 slots: Propulsion x1, Utility x1 841 | -9/Materials | X0-1V1 sent hostile G-34 Mercenary (x3) 989 | -9/Materials | KI resistance permanently improved by X0-1V1 (+10%; -100 max core) 998 | -9/Materials | Central database locked down 1003 | -9/Materials | X0-1V1 activates XOMVISION 1019 | -9/Materials | X0-1V1 sent you to a vault 1042 | -9/Materials | Forcibly received Sfc. Transmogifier from X0-1V1 1061 | -9/Materials | System corruption reached 10% 1071 | -9/Materials | X0-1V1 announced a LAN party 1086 | -9/Materials | X0-1V1 sent you into danger 1119 | -9/Materials | X0-1V1 upgraded hostiles (x2) 1133 | -9/Materials | Lost 3 parts (1p2n) 1206 | -9/Materials | Weapon slot count temporarily expanded by X0-1V1 (+3) 1228 | -9/Materials | Discovered new exit (range 17) 1292 | -9/Materials | Entered Mines 1292 | -9/Mines | Accompanied by 1 ally 1293 | -9/Mines | Assembled infested the area 1329 | -9/Mines | Core integrity fell below 50% 1338 | -9/Mines | Core integrity fell below 20% 1351 | -9/Mines | Destroyed by G-34 Mercenary with Small Laser Last Messages --------------- 01333_ K-01 Serf collects debris. 01334_ The unstable cave ceiling collapses. 01335_ Lgt. Treads destroyed. 01337_ X0-1V1: "Fire in the hole!" 01337_ R-06 Scavenger destroyed. 01337_ Hvy. Assault Rifle destroyed. 01338_ K-01 Serf collects debris. 01339_ The unstable cave ceiling collapses. 01339_ K-01 Serf collects debris. 01341_ The unstable cave ceiling collapses. 01343_ K-01 Serf collects debris. 01344_ The unstable cave ceiling collapses. 01345_ D-53 Grenadier destroyed. 01346_ The unstable cave ceiling collapses. 01346_ K-01 Serf collects debris. 01347_ The unstable cave ceiling collapses. 01349_ U-05 Engineer lays Concrete. 01351_ The unstable cave ceiling collapses. 01351_ X0-1V1 makes it rain matter. 01351_ X0-1V1 howls with laughter! Map ----- +----------------------------------------------------+ | ??????????????? ??????????????? | | ??????????????? #??????????????? | | ??????????????# #??????????????? | | ?????????????? ##?????????????? | | ??????????????# ##????????????? | | ??????????????# #????????????? | | ?????????????## #????????????? | | ????????????## ?????????????? | | ???????????## #?????????????? | | ???????????# #?????????????? | | ??????????## #????? ?????? | | ?????????## #???? ?????? | | ?????????# % ##??? ????? | | ?????????# ##?## ?????? | | ?????????## #?# #??????? | | ????????## ## #??????? | | ???????## # ????????? | | ???????# # ??????????? | | ???????# # # #?????????? | | ???????# % % # #?????????? | | ??????## ## # %t#??????????? | | ??????# % # ##?????????? | | ???##?### ##????????? | | ??## # # ???? | | ??# %% # ???? | | @ #% ###????? | | % !! # ## ##??????? | | %g % #??####???????? | | % % # # #?????????????? | | % ##### #?????????????? | | #???? #?????????????? | | # ## ????? #?????????????? | | ### # #? ????? #?????????????? | | ??# # #? ?????#?????????????? | | ??## #####? %???????????????????? | | ???##?????? %??????????????????? | | ??????????? ??????????????????? | | ??????????? ?????????????????? | | ??????????? ? ?????????????????? | | ??????????? ##????????????????? | | ?????????????#??????????????????? | | ????????????????????????????????? | | ????????????????????????????????? | | ????????????????????????????????? | | ????????????????????????????????? | | ????????????????????????????????? | | ????????????????????????????????? | | ????????????????????????????????? | | ????????????????????????????????? | | ????????????????????????????????? | +----------------------------------------------------+ Best States ------------- Heat Dissipation 28 Energy Generation 14 Energy Capacity 250 Matter Stores 700 Matter Capacity 700 Sight Range 20 Terrain Scan Density 10 Armor Coverage 300 Resistance: KI 10 Evasion (%) 54 Recoil Reduction 3 Item Schematics ----------------- None Robot Schematics ------------------ None Fabricated ------------ Nothing Repaired ---------- Nothing Studied --------- Imp. Hover Unit | -9/Materials | Hacked Alien Tech Used ----------------- None Achievements -------------- None Challenges ------------ None Game ------ Seed SubdwellerConceptBiocell Manual? 0 Play Time 00:12:08 Cumulative 138.6 hours Start 2026.07.27 @ 21:33:02 End 2026.07.27 @ 21:44:49 Sessions 1 Manual Loads 0 Difficulty Rogue Special Mode None Game No. 287 Rogue 287 Adventurer 0 Explorer 0 Win Type - Total 1 Types 1/0/0/0/0/0/0/0/0/0 Lore% 55 Gallery% 55 Achievement% 43 Wizard Run 0 Options --------- Layout 2 ASCII 0 Keyboard 1 Movement Arrows Keybinds 0 Fullscreen 1 Font 24/Smallcaps Map View 50x44 Zoom Use 0% Tactical HUD 1 Map Filters NONE Filters NONE Steam 1 RUN: 0927e2a8-4861-4a6f-a636-2b0bbebeeb49